Cogmind - Beta 16 @@@ ROGUE MODE // 2026.01.26 @ 17:51:04 Player: Xcalibur Result: Destroyed by D-53 Grenadier with Mini Grenade Launcher Performance ------------- Evolutions (0) 0 Regions Visited (2) 400 Robots Destroyed (29) 145 Value Destroyed (631) 631 Prototype IDs (5) 100 Alien Tech Used (0) 0 Bonus (0) 0 TOTAL SCORE: 1276 Bonus ------- None Cogmind --------- Core Integrity 0/250 Matter 273/300 Energy 123/125 System Corruption 0% Temperature Cool (27) Movement Treading (240) Ox1 Location -10/Mines Parts ------- > --- POWER (1) -------- Light Ion Engine > --- PROPULSION (2) --- Light Treads Wheel > --- UTILITY (2) ------ Large Storage Unit Medium Armor Plating > --- WEAPON (2) ------- EM Pulse Gun EM Pulse Gun > --- INVENTORY (15) --- Nuclear Core Light Nuclear Core Wheel Improved Heat Sink Improved Heat Sink Medium Armor Plating Hacking Suite Hacking Suite Improved Medium Laser Improved Medium Laser Improved Medium Laser Beamcaster Datajack Maul Signal Generator Peak State ------------ > --- POWER ------------ Light Ion Engine > --- PROPULSION ------- Light Treads Wheel > --- UTILITY ---------- Improved Heat Sink Large Storage Unit > --- WEAPON ----------- EM Pulse Gun Improved Medium Laser > --- INVENTORY -------- Nuclear Core Light Nuclear Core Wheel Improved Heat Sink Medium Armor Plating Medium Armor Plating Hacking Suite Hacking Suite EM Pulse Gun Improved Medium Laser Improved Medium Laser Beamcaster Datajack Maul Signal Generator [Rating: 15] Favorites ----------- Power Light Ion Engine Engine Light Ion Engine Propulsion Light Treads Treads Light Treads Leg Aluminum Leg Wheel Wheel Utility Small Storage Unit Device Improved Heat Sink Storage Small Storage Unit Protection Medium Armor Plating Weapon Assault Rifle Energy Gun Improved Medium Laser Ballistic Gun Assault Rifle Special Weapon Mining Laser Impact Weapon Maul Build | -11 -10 -10 ------- Run | Yrd Mat Min Slots Evolved . | . . . Power . | . . . Propulsion . | . . . Utility . | . . . Weapon . | . . . Parts Attached 23 | 8 11 4 Power 2 | 1 1 . Engine 2 | 1 1 . Core . | . . . Reactor . | . . . Propulsion 5 | 3 2 . Treads 2 | 2 . . Leg 1 | . 1 . Wheel 2 | 1 1 . Hover . | . . . Flight . | . . . Utility 7 | 2 4 1 Device 3 | 1 2 . Storage 3 | 1 2 . Processor . | . . . Hackware . | . . . Protection 1 | . . 1 Artifact . | . . . Weapon 9 | 2 4 3 Energy Gun 5 | 1 1 3 Energy Cannon . | . . . Ballistic Gun 2 | 1 1 . Ballistic Cannon . | . . . Launcher . | . . . Special Weapon 1 | . 1 . Impact Weapon 1 | . 1 . Slashing Weapon . | . . . Piercing Weapon . | . . . Special Melee Weapon . | . . . Unidentified Prototypes . | . . . Parts Lost 3 | . 3 . Power 1 | . 1 . Propulsion 1 | . 1 . Utility 1 | . 1 . Weapon . | . . . Highest Loss Streak 2 | . 2 . To Critical Strikes . | . . . Average Backups 9 | 3 8 14 Power 1 | . . 2 Propulsion . | 1 . 1 Utility 2 | . 1 3 Weapon 4 | 1 4 6 Tool/Special . | . . . Unused Backups 23 | . 9 14 Power 5 | . 1 4 Propulsion 3 | . 2 1 Utility 5 | . 1 4 Weapon 9 | . 5 4 Tool/Special 1 | . . 1 Average Slot Usage (%) 98 | . 97 100 Engine 14 | . 14 14 Treads 20 | . 23 14 Leg 1 | . 1 . Wheel 5 | . 1 14 Device 12 | . 12 11 Storage 14 | . 14 14 Energy Gun 16 | . 13 20 Ballistic Gun 11 | . 14 7 Peak Build Rating 15 | 7 13 15 Average Rating 10 | 5 9 13 On Entrance 6 | . 7 13 Avg Prop Armor Cover (%) 10 | 3 9 11 Naked Turns . | . . . Heaviest Build 34 | 15 29 34 Greatest Support 40 | 40 40 20 Greatest Overweight (x) 3 | 3 2 3 Average Overweight (x) . | . . 2 Largest Inventory Capacity 15 | 8 15 15 Average Capacity 11 | 7 9 15 Most Carried 15 | 7 14 15 Average Carried 9 | 3 8 14 Final Capacity 15 | 8 15 15 Final Carried 15 | 7 14 15 Class Distribution -------------------- 100% | Mutant Dominant Class ---------------- Mutant | -10/Materials Mutant | -10/Mines Resources | -11 -10 -10 ----------- Run | Yrd Mat Min Matter Collected 680 | 298 292 90 Remotely . | . . . Salvage Created 1065 | 121 674 270 Parts 55 | 5 35 15 Haulers Intercepted 2 | . 2 . Recyclers Shooed 1 | . . 1 Parts Field Recycled . | . . . Retrieved Matter . | . . . Parts Self-Destructed . | . . . Prevented . | . . . Parts Restored . | . . . Kills | -11 -10 -10 ------- Run | Yrd Mat Min Combat Hostiles Destroyed 21 | . 14 7 Guns 21 | . 14 7 Classes Destroyed 8 | 2 5 1 Worker 3 | . 3 . Tunneler 2 | 2 . . Hauler 2 | . 2 . Recycler 1 | 1 . . Watcher 1 | . 1 . Swarmer 6 | . 6 . Grunt 14 | . 8 6 Assembled 1 | . . 1 Best Kill Streak 4 | 3 4 4 Combat Bots Only 4 | . 4 4 Max Kills in Single Turn 2 | 1 1 2 Gunslinging 1 | . . 1 Exploded . | . . . Melee . | . . . Uniques/NPCs Destroyed . | . . . Combat | -11 -10 -10 -------- Run | Yrd Mat Min Hostile Shots Fired 78 | . 61 17 Missed 22 | . 14 8 Hits 56 | . 47 9 Projectile 56 | . 47 9 AOE 2 | . . 2 Damage Taken 781 | . 595 186 Core 259 | . 167 92 Absorbed by Shields . | . . . Regen/Repaired (Parts) 71 | . 71 . Core Remaining (%) 100 | 100 . . Volleys Fired 80 | 6 52 22 Largest 2 | 2 2 2 Hottest 120 | 70 120 96 Shots Fired 160 | 12 104 44 Gun 159 | 12 103 44 Cannon . | . . . Launcher . | . . . Special 1 | . 1 . Kinetic 75 | 6 52 17 Thermal 76 | 6 52 18 Explosive . | . . . Electromagnetic 9 | . . 9 Robot Hit Streak 18 | 3 18 10 Robot Miss Streak 3 | 1 2 3 Penetration Max . | . . . Secondary Targets 2 | . . 2 Max Gunslinging Chain 1 | . . 1 Shots Hit Robots 106 | 7 70 29 Core Hits 39 | 4 23 12 Critical Kills 1 | . 1 . Critical Parts Destroyed . | . . . Critical Strikes 8 | . 5 3 Burn 7 | . 4 3 Destroy 1 | . 1 . Melee Attacks 3 | . 2 1 Impact 3 | . 2 1 Slashing . | . . . Piercing . | . . . Sneak Attacks . | . . . Combat Hostiles . | . . . Follow-up Attacks . | . . . Damage Inflicted 1608 | 98 1040 470 Guns 1520 | 98 1006 416 Cannons . | . . . Explosions 54 | . . 54 Melee 30 | . 30 . Ramming 4 | . 4 . Kinetic 663 | 72 442 149 Thermal 868 | 26 564 278 Explosive . | . . . Electromagnetic 43 | . . 43 Impact 30 | . 30 . Slashing . | . . . Piercing . | . . . Highest Corruption . | . . . Average Corruption . | . . . Corruption Purged . | . . . Corruption Blocked . | . . . Overload Shots . | . . . Overflow Damage 32 | . 12 20 Projectiles . | . . . Explosions 20 | . . 20 Melee 12 | . 12 . Knockbacks . | . . . Impact . | . . . Kinetic . | . . . Secondary . | . . . Self-Inflicted Damage . | . . . Shots . | . . . Rammed 4 | . 3 1 Targets Rammed 4 | . 3 1 Kicked . | . . . Crushed . | . . . Highest Temperature 120 | 27 120 27 Average Temperature 35 | 11 39 12 Received Heat Transfer 319 | . 240 79 Siege Activations . | . . . Martial Activations . | . . . Shielding Activations . | . . . Robots Disrupted . | . . . Combat Hostiles . | . . . Robots Corrupted 1 | . 1 . Combat Hostiles . | . . . Parts Fried 1 | . 1 . Impact Corruptions 1 | . 1 . Robots Melted . | . . . Combat Hostiles . | . . . Parts Melted 3 | . 1 2 Heat Transferred 2492 | 74 1665 753 Parts Sabotaged . | . . . Parts Stolen . | . . . Parts Stripped . | . . . Power Chain Reactions 1 | . . 1 Alert | -11 -10 -10 ------- Run | Yrd Mat Min Maximum Alert Level . | . . . Low Security (%) 100 | 100 100 100 Level 1 . | . . . Level 2 . | . . . Level 3 . | . . . Level 4 . | . . . Level 5 . | . . . High Security . | . . . Max Security . | . . . Peak Influence 135 | 10 135 111 Initial 26 | . . 26 Average 62 | 1 85 31 Influence Increases 662 | 15 500 147 Destroy 0b10 Robot/C 400 | . 280 120 Destroy 0b10 Robot/NC 45 | 15 30 . Destroy Leader 96 | . 76 20 Allied During Kill 5 | . . 5 Successful Hack 17 | . 17 . Select Force Hacks 60 | . 60 . Destroy Structure 9 | . 7 2 Lose Combat Pursuer 30 | . 30 . Influence Decreases 661 | 15 432 214 Entered New Map 42 | . . 42 Time Decay 569 | 15 402 152 Lost Part 30 | . 30 . Lost Ally 20 | . . 20 Squads Dispatched 5 | . 4 1 Investigation 3 | . 3 . Extermination . | . . . Reinforcement 1 | . 1 . Assault 1 | . . 1 Garrison . | . . . Intercept . | . . . Searches Triggered . | . . . Construction Impeded . | . . . Haulers Reinforced . | . . . Active Scanning Responses . | . . . Cargo Convoy Interrupts . | . . . Stealth | -11 -10 -10 --------- Run | Yrd Mat Min Distress Signals 1 | . 1 . Communications Jammed . | . . . Distress Signals . | . . . Times Spotted 32 | . 20 12 Peak Tracking Total 4 | . 4 4 Tactical Retreats 3 | . 2 1 Traps | -11 -10 -10 ------- Run | Yrd Mat Min Traps Triggered 2 | . 2 . Indirectly . | . . . Trap Hack Attempts . | . . . Triggered . | . . . Disarmed . | . . . Reprogrammed . | . . . Reused . | . . . Traps Extracted . | . . . Installed . | . . . Triggered . | . . . Machines | -11 -10 -10 ---------- Run | Yrd Mat Min Machines Disabled . | . . . Max in Single Turn . | . . . Machines Repaired . | . . . Machines Dismantled . | . . . Machines Sabotaged . | . . . Overloaded Fab Kills . | . . . Hacking | -11 -10 -10 --------- Run | Yrd Mat Min Machines Accessed 9 | . 8 1 Terminals 5 | . 5 . Fabricators . | . . . Repair Stations 1 | . 1 . Recycling Units 2 | . 2 . Scanalyzers . | . . . Garrison Access . | . . . Total Hacks 27 | . 26 1 Successful 15 | . 14 1 Failed 12 | . 12 . Catastrophic 1 | . 1 . Database Lockouts . | . . . Manual 13 | . 13 . Terminals 19 | . 19 . Fabricators . | . . . Repair Stations 3 | . 3 . Recycling Units 4 | . 4 . Scanalyzers . | . . . Garrison Access . | . . . Terminal Hacks 7 | . 6 1 Prototype ID Bank 4 | . 4 . Open Door 1 | . . 1 Locate Traps 2 | . 2 . Fabricator Hacks . | . . . Repair Station Hacks 2 | . 2 . Scan Component 1 | . 1 . Repair 1 | . 1 . Recycling Unit Hacks 2 | . 2 . Retrieve Components 2 | . 2 . Scanalyzer . | . . . Garrison Access Hacks . | . . . Unauthorized Hacks 4 | . 4 . Terminals 2 | . 2 . Botnet 2 | . 2 . Fabricators . | . . . Repair Stations . | . . . Recycling Units 2 | . 2 . Tunnel 2 | . 2 . Scanalyzers . | . . . Garrison Access . | . . . Data Cores Recovered . | . . . Used . | . . . Hacking Detections 6 | . 6 . Full Trace Events 1 | . 1 . Feedback Events . | . . . Feedback Blocked . | . . . Robot Schematics Acquired . | . . . Robots Built . | . . . Authchips . | . . . Time . | . . . Total Robot Build Rating . | . . . Part Schematics Acquired . | . . . Parts Built . | . . . Authchips . | . . . Time . | . . . Total Part Build Rating . | . . . Part Studies Acquired . | . . . Parts Repaired 1 | . 1 . Time 26 | . 26 . Parts Recycled . | . . . Recycled Matter . | . . . Retrieved Matter . | . . . Retrieved Components 11 | . 11 . Parts Scanalyzed . | . . . Part Schematics Acquired . | . . . Parts Damaged . | . . . Bothacking | -11 -10 -10 ------------ Run | Yrd Mat Min Used RIF Installer . | . . . Robots Hacked . | . . . Non-combat . | . . . Combat . | . . . Robot Hacks Applied . | . . . Relay Couplers Released . | . . . Fabnet Peak Effective % . | . . . Robots Rewired . | . . . Allies Hacked . | . . . Hacks Repelled . | . . . Allies | -11 -10 -10 -------- Run | Yrd Mat Min Total Allies 3 | . . 3 Largest Group 2 | . . 2 Highest-Rated Group 42 | . . 42 Highest-Rated Ally 31 | . . 31 Total Orders . | . . . Ally Attacks 13 | . . 13 Total Damage 147 | . . 147 Kills 1 | . . 1 Allies Corrupted . | . . . Allies Melted . | . . . Intel | -11 -10 -10 ------- Run | Yrd Mat Min Active Infowar (turns) 409 | 36 373 . Seismic 409 | 36 373 . Robot Analysis Total . | . . . Derelict Logs Recovered . | . . . Drone Launches . | . . . Drone Recoveries . | . . . Exploration | -11 -10 -10 ------------- Run | Yrd Mat Min Turns Passed 1704 | 130 1043 531 Spaces Moved 814 | 61 482 271 Core 4 | 4 . . Treads 459 | 56 401 2 Legs 22 | . 22 . Wheels 329 | 1 59 269 Hover . | . . . Flight . | . . . Fastest Speed 50 | 50 110 110 Average Speed 146 | 155 165 111 Slowest Speed 260 | 200 260 240 Overloaded Moves . | . . . Propulsion Burnouts . | . . . Robots Hopped . | . . . Potential Cave-ins . | . . . Cave-ins Triggered . | . . . Exploration Rate (%) 46 | 4 79 56 Regions Visited 2 Branch Regions 1 Pre-discovered Areas 2 | . 2 . Known Exits Taken . | . . . Unknown Exits Taken 2 | 1 1 . Scrap Searched 2 | . . 2 Spaces Dug 3 | . 2 1 Terrain Destroyed 4 | . 2 2 Melee 2 | . 1 1 Projectile 1 | . 1 . AOE 1 | . . 1 Terrain Rammed . | . . . Walls Destroyed . | . . . Machines Disabled . | . . . Actions | -11 -10 -10 --------- Run | Yrd Mat Min Total 1160 | 81 623 456 Wait 166 | . 28 138 Move 812 | 60 481 271 Hop . | . . . Pick Up 36 | 6 22 8 Fast Attach 14 | 8 5 1 Attach 2 | . 2 . Detach 1 | 1 . . Swap 15 | . 9 6 Drop 27 | . 19 8 Fire 80 | 6 52 22 Melee 3 | . 2 1 Ram . | . . . Kick . | . . . Crush 4 | . 3 1 Escape Stasis . | . . . Rewire . | . . . Trap . | . . . Miscellaneous . | . . . Route ------- -11/Scrapyard -10/Materials (discovered 5 exits: [*Mat x3] / *Min / [*Sub]) -10/Mines (discovered 2 exits: [*Mat x2]) History --------- Turn | Location | Event 79 | -11/Scrapyard | Discovered new exit (range 15) 131 | -11/Scrapyard | Entered Materials 308 | -10/Materials | Build established: Mutant 400 | -10/Materials | Discovered new exit (range 14) 620 | -10/Materials | Discovered new exit (range 7) 675 | -10/Materials | Core integrity fell below 50% 758 | -10/Materials | Discovered new exit (range 16) 836 | -10/Materials | Discovered new exit (range 15) 937 | -10/Materials | Discovered new exit (range 10) 1005 | -10/Materials | Repaired Lgt. Treads? 1174 | -10/Materials | Entered Mines 1175 | -10/Mines | Met a Derelict testing a Signal Generator 1178 | -10/Mines | Found Signal Generator 1236 | -10/Mines | Discovered new exit (range 10) 1249 | -10/Mines | Discovered new exit (range 4) 1470 | -10/Mines | Assembled infested the area 1477 | -10/Mines | Met a Derelict who couldn't figure out how to use a Trap Extractor 1569 | -10/Mines | Lost 3 allies 1703 | -10/Mines | Core integrity fell below 20% 1705 | -10/Mines | Destroyed by D-53 Grenadier with Mini Grenade Launcher Last Messages --------------- 01488_ Found Med. Battery. 01488_ Found Beam Cannon. 01488_ Found 33 Matter. 01490_ Dropped Ion Engine. 01490_ Acquired Nuclear Core. 01492_ Dropped Lgt. Cannon. 01492_ Acquired Hacking Suite. 01494_ Dropped Imp. Medium Laser. 01495_ Acquired Hacking Suite. 01567_ Slammed into as-39671. 01575_ as-39671 destroyed. 01641_ Acquired 19 matter. 01649_ The unstable cave ceiling collapses. 01697_ K-01 Serf collects debris. 01702_ The unstable cave ceiling collapses. 01702_ SHOP.Sys disabled. 01702_ Chain reaction triggered in Lgt. Deuterium Engine. 01702_ Destroyed Shock Absorption System. 01704_ K-01 Serf collects debris. 01705_ The unstable cave ceiling collapses. Map ----- +----------------------------------------------------+ | | | | | | | | | | | | | | | | | | | | | | | | | | | | | | | | | ???????????????????????????????????????? | | ???????????????????????????????????????? | | ????????????????????????########???????? | | ????????????????????????#""""""#???????? | | ????????????????????????#*]]][ #???????? | | ????????????????????????## ^!%##???????? | | ?????????????????????#####]*!]#????????? | | ????????????????????## # =###???????? | | ???????????????????## #???????? | | ???????????????????#; @ ###?????? | | ???????????????????### ##????? | | ?????????????????????# ##???? | | ?????????????????????# #; ##??? | | ??????????????#####? d #??? | | ??????????????? ## #??? | | ??????????????????# = #??? | | ????????????????? ##??? | | ????????????????## # # ##??? | | ?????????????????# #??? | | ?????????????????# # ? # #?? | | ???????????????? ? ? # # #?? | | ???????????????? ? ?? # ##= # ## ##?? | | ????????????????? ?? ####? % k# ? #??? | | ??????????????????? #?????# # # ###??? | | ?????????????? ##### # ####???? | | ???????????????????""" % [#???? | | ???????????????????""" #### #???? | | ???????????????????""" ########??# #???? | | ?????????????????????????????????# #???? | | ?????????????????????????????????# #???? | | ?????????????????????????????????# #???? | | ?????????????????????????????????# #???? | | ?????????????????????????????????# ##??? | | ??????????????????????????????#### ##?? | +----------------------------------------------------+ Best States ------------- Heat Dissipation 39 Energy Generation 10 Energy Capacity 250 Matter Stores 300 Matter Capacity 300 Sight Range 16 Terrain Scan Density 10 Armor Coverage 225 Evasion (%) 40 Recoil Reduction 2 Item Schematics ----------------- None Robot Schematics ------------------ None Fabricated ------------ Nothing Repaired ---------- Lgt. Treads | 49% | -10/Materials Studied --------- None Alien Tech Used ----------------- None Achievements -------------- None Challenges ------------ None Game ------ Seed BiomechanicalCompositeMallet Manual? 0 Play Time 00:16:53 Cumulative 151.6 hours Start 2026.01.26 @ 17:34:22 End 2026.01.26 @ 17:51:04 Sessions 1 Manual Loads 0 Difficulty Rogue Special Mode None Game No. 61 Rogue 61 Adventurer 0 Explorer 0 Win Type - Total 7 Types 6/0/0/1/0/0/0/0/0/0 Lore% 51 Gallery% 55 Achievement% 45 Wizard Run 0 Options --------- Layout 0 ASCII 0 Keyboard 0 Movement Arrows Keybinds 0 Fullscreen 2 Font 18/Terminus Map View 76x50 Zoom Use 0% Tactical HUD 1 Map Filters NONE Filters NONE Steam 1 RUN: 2e0d91a2-e1f9-4efa-9e49-d56bd9795574